bitfinex/quotes_ETHUSD_20240828
["timestamp","ask_amount","ask_price","bid_price","bid_amount"]
[1724866953696,0.414582,2525.0,2524.8,3.9607]
[1724866953880,0.414582,2525.0,2524.9,3.96055]
[1724866954055,0.414582,2525.0,2524.9,4.04757953]
[1724866955403,0.414582,2525.0,2524.9,0.08702953]
[1724866955555,0.414582,2525.0,2524.7,3.96072]
[1724866955896,0.414582,2525.0,2524.8,0.08747215]
[1724866956095,0.414582,2525.0,2524.8,4.04810215]
[1724866957280,0.414582,2525.0,2524.8,0.08747215]
[1724866958786,0.414582,2525.0,2524.6,3.96101]
[1724866959001,0.414582,2525.0,2524.7,0.08760359]
[1724866959715,4.375052,2525.0,2524.7,0.08760359]
[1724866959879,3.96056,2524.9,2524.5,3.96106]
[1724866960089,3.96056,2524.9,2524.0,6.96188]
[1724866960090,10.23446,2524.9,2524.8,0.08749646]
[1724866960322,10.23446,2524.9,2524.3,3.96148]
[1724866960323,3.96078,2524.8,2524.3,3.96148]
[1724866960627,3.96103,2524.6,2524.4,0.08798337]
[1724866960931,3.96126,2524.5,2524.1,12.18]
[1724866961631,7.92196,2524.7,2524.2,0.08821087]
[1724866961816,3.96105,2524.6,2524.2,0.08821087]
[1724866962186,3.96096,2524.7,2524.2,0.08821087]
[1724866962385,5.053231,2524.6,2524.2,0.08821087]
[1724866962627,5.053231,2524.6,2524.2,4.04985087]
[1724866962628,1.092201,2524.6,2524.2,4.04985087]
[1724866962986,3.0,2524.8,2524.2,4.04985087]
[1724866963189,2.3132,2524.9,2524.4,3.96131]
[1724866963531,0.414582,2525.0,2524.5,7.92223]
[1724866963739,0.414582,2525.0,2524.5,4.04916373]
[1724866964042,7.9212,2524.9,2524.5,0.08809373]
[1724866964219,3.96057,2524.9,2524.5,0.08809373]
[1724866964394,0.414582,2525.0,2524.5,4.04916373]
[1724866964594,1.3833952,2525.0,2524.5,0.08809373]
[1724866964899,3.96057,2524.9,2524.5,0.08809373]
[1724866965342,0.414582,2525.0,2524.4,0.07922687]
[1724866965490,0.414582,2525.0,2524.9,3.96055]
[1724866965927,0.414582,2525.0,2524.9,4.04814224]
[1724866966758,0.414582,2525.0,2524.9,8.00869224]
[1724866967029,15.36742,2526.1,2526.0,385.666658]
[1724866967242,7.91742,2526.1,2526.0,385.75299958]
[1724866967561,9.19335966,2526.1,2526.0,385.75299958]
[1724866967832,13.56663558,2526.1,2526.0,385.75299958]
[1724866968529,9.60792558,2526.1,2526.0,385.75299958]
[1724866970149,12.60792558,2526.1,2526.0,385.75299958]
[1724866970351,16.56663558,2526.1,2526.0,385.75299958]
[1724866970650,18.61914014,2526.1,2526.0,385.75299958]
[1724866973541,14.66043014,2526.1,2526.0,385.75299958]
[1724866974129,18.61910014,2526.1,2526.0,385.75299958]
[1724866974454,18.61906014,2526.1,2526.0,385.75299958]
[1724866975218,14.66039014,2526.1,2526.0,385.75299958]
[1724866975518,18.61906014,2526.1,2526.0,385.75299958]
[1724866976219,22.57773014,2526.1,2526.0,385.75299958]
[1724866976861,22.57773014,2526.1,2526.0,384.98543667]
[1724866977163,22.57773014,2526.1,2526.0,384.34254484]
[1724866979060,22.57773014,2526.1,2526.0,384.34115145]
[1724866980265,18.61906014,2526.1,2526.0,384.34115145]
[1724866980419,16.56655558,2526.1,2526.0,384.34115145]
[1724866980613,13.56655558,2526.1,2526.0,384.34115145]
[1724866980921,11.30765558,2526.1,2526.0,384.34115145]
[1724866981121,7.34898558,2526.1,2526.0,384.34115145]
[1724866983581,0.41456592,2526.1,2526.0,384.34115145]
[1724866984214,8.33190592,2526.1,2526.0,384.34115145]
[1724866984470,0.41456592,2526.1,2526.0,384.34115145]
[1724866985572,4.37323592,2526.1,2526.0,384.34115145]
[1724866986141,8.33190592,2526.1,2526.0,384.34115145]
[1724866988557,11.33190592,2526.1,2526.0,384.34115145]
[1724866988881,7.37323592,2526.1,2526.0,384.34115145]
[1724866989082,4.37323592,2526.1,2526.0,384.34115145]
[1724866990002,8.33190592,2526.1,2526.0,384.34115145]
[1724866990183,9.16508051,2526.1,2526.0,384.34115145]
[1724866990381,13.12375051,2526.1,2526.0,384.34115145]
[1724866990583,16.12375051,2526.1,2526.0,384.34115145]
[1724866992918,20.08242051,2526.1,2526.0,384.34115145]
[1724866993473,16.12375051,2526.1,2526.0,384.34115145]
[1724866994622,20.08242051,2526.1,2526.0,384.34115145]
[1724866995313,22.48492051,2526.1,2526.0,380.98821061]
[1724866995482,26.99359051,2526.1,2526.0,370.34581258]
[1724866996377,23.03492051,2526.1,2526.0,370.34581258]
[1724866996677,31.12184051,2526.1,2526.0,360.44876258]
[1724866996994,30.55718451,2526.1,2526.0,360.44876258]
[1724866997187,23.03492051,2526.1,2526.0,360.44876258]
[1724866997390,26.99359051,2526.1,2526.0,358.46935258]
[1724866997680,26.99359051,2526.1,2526.0,349.50562682]
[1724866997882,27.08710185,2526.1,2526.0,349.50562682]
[1724866998417,23.12843185,2526.1,2526.0,349.50562682]
[1724866998614,27.08710185,2526.1,2526.0,340.74245489]
[1724866998945,37.37993985,2526.1,2526.0,320.37740548]
[1724866999077,32.78637393,2526.1,2526.0,316.26894372]
[1724866999279,32.78637393,2526.1,2526.0,314.28953372]
[1724866999478,32.78637393,2526.1,2526.0,310.33071372]
[1724866999976,23.12849258,2526.1,2526.0,310.33071372]
[1724867000179,29.26266458,2526.1,2526.0,310.33071372]
[1724867000380,29.26266458,2526.1,2526.0,308.35130372]
[1724867000625,25.30399458,2526.1,2526.0,300.43366372]
[1724867001216,25.25399458,2526.1,2526.0,300.43366372]
[1724867002228,23.07849258,2526.1,2526.0,300.43366372]
[1724867002393,15.28664799,2526.1,2526.0,300.43366372]
[1724867002594,14.73664799,2526.1,2526.0,300.43366372]
[1724867003450,18.69531799,2526.1,2526.0,300.43366372]
[1724867003656,18.69531799,2526.1,2526.0,296.47484372]
[1724867003966,35.59267149,2526.1,2526.0,284.52786529]
[1724867004127,35.59267149,2526.1,2526.0,278.07899637]
[1724867004322,35.59267149,2526.1,2526.0,276.09958637]
[1724867004525,35.59267149,2526.1,2526.0,272.14076637]
[1724867004823,35.07087999,2526.1,2526.0,270.16135637]
[1724867005139,30.03881299,2526.1,2526.0,270.16135637]
[1724867005350,30.03881299,2526.1,2526.0,268.18194637]
[1724867005546,30.03881299,2526.1,2526.0,260.26430637]
[1724867005547,26.20398799,2526.1,2526.0,260.26430637]
[1724867005745,36.86861799,2526.1,2526.0,260.26430637]
[1724867005975,36.86861799,2526.1,2526.0,259.62740637]
[1724867006164,40.86861799,2526.1,2526.0,259.62740637]
[1724867006833,28.59286399,2526.1,2526.0,257.64799637]
[1724867007040,22.24531799,2526.1,2526.0,257.64799637]
[1724867007269,21.69531799,2526.1,2526.0,257.64799637]
[1724867008456,22.24531799,2526.1,2526.0,257.64799637]
[1724867008784,24.72237299,2526.1,2526.0,257.64799637]
[1724867009440,22.24531799,2526.1,2526.0,257.64799637]
[1724867009885,24.27956299,2526.1,2526.0,257.64799637]
[1724867010306,22.24531799,2526.1,2526.0,257.64799637]
[1724867010620,22.14531799,2526.1,2526.0,257.64799637]
[1724867010957,28.41664299,2526.1,2526.0,251.03906637]
[1724867011153,28.41664299,2526.1,2526.0,247.08024637]
[1724867011359,28.41664299,2526.1,2526.0,245.10083637]
[1724867011581,24.45797299,2526.1,2526.0,243.12142637]
[1724867011772,24.45797299,2526.1,2526.0,236.34529637]
[1724867012196,18.18664799,2526.1,2526.0,236.34529637]
[1724867013394,11.27547799,2526.1,2526.0,236.34529637]
[1724867013781,15.23414799,2526.1,2526.0,236.34529637]
[1724867014107,17.25024799,2526.1,2526.0,236.34529637]
[1724867014866,20.14934799,2526.1,2526.0,236.34529637]
[1724867015184,14.17457799,2526.1,2526.0,236.34529637]
[1724867015392,17.58324799,2526.1,2526.0,236.34529637]
[1724867015774,11.27547799,2526.1,2526.0,236.34529637]
[1724867016096,11.18196665,2526.1,2526.0,236.34529637]
[1724867017598,15.14063665,2526.1,2526.0,236.34529637]
[1724867017827,15.69063665,2526.1,2526.0,236.34529637]
[1724867018326,26.70960665,2526.1,2526.0,236.34529637]
[1724867019032,30.66827665,2526.1,2526.0,221.16278828]
[1724867019435,30.88860665,2526.1,2526.0,221.16278828]
[1724867019591,34.84727665,2526.1,2526.0,221.16278828]
[1724867019789,34.84727665,2526.1,2526.0,219.18337828]
[1724867020033,30.88860665,2526.1,2526.0,219.18337828]
[1724867020619,34.88860665,2526.1,2526.0,219.18337828]
[1724867020829,26.75093665,2526.1,2526.0,219.18337828]
[1724867021039,19.69063665,2526.1,2526.0,219.18337828]
[1724867021712,15.69063665,2526.1,2526.0,219.18337828]
[1724867022209,15.14063665,2526.1,2526.0,219.18337828]
[1724867025402,21.40910165,2526.1,2526.0,219.18337828]
[1724867025594,18.67950165,2526.1,2526.0,219.18337828]
[1724867025818,17.68030165,2526.1,2526.0,219.18337828]
[1724867026020,15.14063665,2526.1,2526.0,219.18337828]
[1724867026999,17.41644865,2526.1,2526.0,219.18337828]
[1724867027199,21.37511865,2526.1,2526.0,219.18337828]
[1724867027409,21.37511865,2526.1,2526.0,213.12377851]
[1724867027608,28.28298865,2526.1,2526.0,207.03068951]
[1724867028395,28.28298865,2526.1,2526.0,204.20177951]
[1724867028599,28.28298865,2526.1,2526.0,197.91354951]
[1724867028899,28.28298865,2526.1,2526.0,195.93413951]
[1724867029112,36.46198865,2526.1,2526.0,190.48418951]
[1724867029351,36.46198865,2526.1,2526.0,182.74443793]
[1724867029654,36.46198865,2526.1,2526.0,182.49763793]
[1724867029948,36.46198865,2526.1,2526.0,179.32061417]
[1724867029949,36.96439602,2526.1,2526.0,179.32061417]
[1724867030350,36.96439602,2526.1,2526.0,176.14359041]
[1724867030547,32.96439602,2526.1,2526.0,170.20536041]
[1724867030723,32.96439602,2526.1,2526.0,167.02833665]
[1724867030927,32.96439602,2526.1,2526.0,163.85131289]
[1724867031317,32.96439602,2526.1,2526.0,153.86715913]
[1724867031647,32.96439602,2526.1,2526.0,153.34775913]
[1724867031944,29.00572602,2526.1,2526.0,150.17073537]
[1724867032152,32.96439602,2526.1,2526.0,149.82073537]
[1724867033053,32.96439602,2526.1,2526.0,145.42612537]
[1724867033260,32.96439602,2526.1,2526.0,141.06530537]
[1724867033557,36.96439602,2526.1,2526.0,131.95005161]
[1724867033852,36.96439602,2526.1,2526.0,128.77302785]
[1724867034038,36.96439602,2526.1,2526.0,126.52805285]
[1724867034234,36.96439602,2526.1,2526.0,123.35102909]
[1724867034438,36.96439602,2526.1,2526.0,119.25190909]
[1724867034439,28.82672602,2526.1,2526.0,119.25190909]
[1724867034618,19.14063665,2526.1,2526.0,119.25190909]
[1724867034818,16.14063665,2526.1,2526.0,119.25190909]
[1724867036124,8.18196665,2526.1,2526.0,119.25190909]
[1724867036355,8.18196665,2526.1,2526.0,121.56930909]
[1724867037137,0.41462665,2526.1,2526.0,122.82621411]
[1724867037342,4.37329665,2526.1,2526.0,122.82621411]
[1724867037850,0.41462665,2526.1,2526.0,121.56930909]
[1724867038055,0.06253692,2526.1,2526.0,121.56930909]
[1724867038575,7.45,2527.0,2526.1,2.4752]
[1724867038759,7.45,2527.0,2526.3,2.4752]
[1724867039135,7.45,2527.0,2526.5,2.4752]
[1724867039336,4.37067489,2527.7,2526.7,2.4752]
[1724867039337,3.95652,2527.5,2526.7,2.4752]
[1724867039738,3.95632,2527.6,2526.8,0.08281866]
[1724867039941,3.95632,2527.6,2526.9,2.4752]
[1724867040178,3.95647,2527.5,2526.9,2.73100187]
[1724867040486,3.95647,2527.5,2527.1,2.2871]
[1724867040978,3.95647,2527.5,2527.2,0.08239094]
[1724867041281,7.91358,2527.3,2527.2,0.08239094]
[1724867041442,6.95679,2527.3,2527.1,2.2871]
[1724867041783,3.0,2527.2,2527.1,2.2871]
[1724867042286,3.95618,2527.7,2527.1,2.59830785]
[1724867042287,3.0,2527.4,2527.1,2.59830785]
[1724867042447,3.9565,2527.5,2527.1,2.59830785]
[1724867042633,3.0,2527.4,2527.1,2.36959785]
[1724867043868,6.95644,2527.6,2527.1,2.2871]
[1724867044083,6.95644,2527.6,2527.2,0.08059617]
[1724867044408,3.95649,2527.5,2527.1,2.2871]
[1724867044612,3.0,2527.4,2527.1,2.2871]
[1724867044894,3.0,2527.4,2527.2,0.08059617]
[1724867045097,3.95679,2527.3,2527.2,0.08059617]
[1724867045297,6.95679,2527.3,2527.1,2.2871]
[1724867045500,3.95694,2527.2,2527.1,2.2871]
[1724867045705,6.95694,2527.2,2527.1,2.2871]
[1724867046054,3.0,2527.2,2527.1,2.2871]
[1724867046402,3.0,2527.2,2527.1,2.59651309]
[1724867046604,3.95632,2527.6,2527.1,2.59651309]
[1724867046800,2.9962,2527.5,2527.1,2.59651309]
[1724867046970,6.95617,2527.7,2527.3,2.4843]
[1724867047176,3.95635,2527.6,2527.3,2.4843]
[1724867047693,3.0,2527.7,2527.3,2.4843]
[1724867047911,3.0,2527.7,2527.4,0.08036297]
[1724867048058,3.95611,2527.8,2527.4,0.3627944]
[1724867048257,3.95611,2527.8,2527.4,0.28243143]
[1724867048693,11.40574,2528.0,2527.5,2.3198]
[1724867048907,3.95586,2527.9,2527.5,2.40005608]
[1724867049116,3.95603,2527.8,2527.5,2.40005608]
[1724867049288,3.95629,2527.7,2527.5,2.40005608]
[1724867049488,3.95632,2527.6,2527.5,2.3198]
[1724867049703,3.95741,2526.9,2526.6,2.3198]
[1724867049906,3.95741,2526.9,2526.7,0.08104846]
[1724867050091,7.45,2527.4,2526.7,0.08104846]
[1724867050092,6.95715,2527.1,2526.7,0.08104846]
[1724867050290,6.95715,2527.1,2526.8,2.3198]
[1724867050490,3.0,2527.1,2526.8,2.3198]
[1724867050799,3.0,2527.1,2526.9,0.08081033]
[1724867050987,6.95722,2527.1,2526.9,0.08081033]
[1724867051182,6.95722,2527.1,2526.8,2.3198]
[1724867051183,3.95737,2527.0,2526.8,2.3198]
[1724867051372,10.91441,2527.1,2526.8,2.3198]
[1724867051575,3.0,2527.1,2526.9,0.08094604]
[1724867051932,3.95711,2527.1,2526.9,0.08094604]
[1724867052219,3.0,2527.0,2526.9,0.08094604]
[1724867052725,3.0,2527.2,2526.9,0.08094604]
[1724867052927,6.95699,2527.2,2526.8,2.3198]
[1724867053092,7.91438,2527.1,2526.9,0.08094604]
[1724867053295,3.0,2527.0,2526.3,2.2677]
[1724867053516,3.0,2527.2,2526.5,2.2677]
[1724867053885,3.0,2527.2,2526.6,2.3489669]
[1724867054120,3.0,2527.2,2526.7,2.2677]
[1724867054305,3.0,2527.3,2526.8,0.08105298]
[1724867054512,3.95625,2527.7,2526.9,2.2677]
[1724867054731,7.91106,2528.1,2528.0,103.80337751]
[1724867055037,12.3883815,2528.1,2528.0,103.88314772]
[1724867055243,7.91106,2528.1,2528.0,103.88314772]
[1724867055831,8.32555394,2528.1,2528.0,103.88314772]
[1724867055981,0.41449394,2528.1,2528.0,103.88314772]
[1724867056343,4.37002394,2528.1,2528.0,103.88314772]
[1724867057295,8.32555394,2528.1,2528.0,103.88314772]
[1724867058022,11.32555394,2528.1,2528.0,103.88314772]
[1724867060798,15.28108394,2528.1,2528.0,103.88314772]
[1724867061034,15.28108394,2528.1,2528.0,103.72040051]
[1724867061035,19.23661394,2528.1,2528.0,103.72040051]
[1724867061234,15.28108394,2528.1,2528.0,103.72040051]
[1724867061737,19.23661394,2528.1,2528.0,103.72040051]
[1724867061948,15.28108394,2528.1,2528.0,103.72040051]
[1724867062286,19.23661394,2528.1,2528.0,103.72040051]
[1724867062884,15.28108394,2528.1,2528.0,103.72040051]
[1724867063859,19.23661394,2528.1,2528.0,98.86868875]
[1724867063988,19.78661394,2528.1,2528.0,96.89083875]
[1724867064196,15.83108394,2528.1,2528.0,96.89083875]
[1724867064394,15.28108394,2528.1,2528.0,96.89083875]
[1724867065899,15.37401549,2528.1,2528.0,96.89083875]
[1724867069448,15.28108394,2528.1,2528.0,96.89083875]
[1724867069940,11.32555394,2528.1,2528.0,96.89083875]
[1724867070252,4.37002394,2528.1,2528.0,103.20677431]
[1724867070539,8.32555394,2528.1,2528.0,96.89083875]
[1724867070760,30.48947244,2528.1,2528.0,81.3217568]
[1724867070905,26.91496096,2528.1,2528.0,77.0539013]
[1724867071412,34.42049096,2528.1,2528.0,70.7213513]
[1724867071797,34.03947244,2528.1,2528.0,65.1413513]
[1724867072000,34.03947244,2528.1,2528.0,64.5127813]
[1724867072625,34.03947244,2528.1,2528.0,58.5792313]
[1724867072626,26.66253544,2528.1,2528.0,58.5792313]
[1724867072792,46.36603344,2528.1,2528.0,54.6235313]
[1724867072996,42.41050344,2528.1,2528.0,50.7801313]
[1724867073435,42.41050344,2528.1,2528.0,42.8687313]
[1724867073652,46.36603344,2528.1,2528.0,40.8908813]
[1724867073814,41.88871194,2528.1,2528.0,40.8908813]
[1724867074010,19.78661394,2528.1,2528.0,40.8908813]
[1724867074266,15.92114832,2528.1,2528.0,40.8908813]
[1724867074879,15.28108394,2528.1,2528.0,40.8908813]
[1724867075737,12.28108394,2528.1,2528.0,40.8908813]
[1724867077077,15.28108394,2528.1,2528.0,40.8908813]
[1724867079388,3.95553,2528.1,2528.0,0.07977021]
[1724867079853,3.956,2527.8,2527.7,2.3265]
[1724867080586,7.45,2528.5,2527.7,2.93469707]
[1724867080882,7.45,2528.5,2527.8,2.3316]
[1724867080883,3.9557,2528.0,2527.8,2.3316]
[1724867081380,3.95585,2527.9,2527.8,2.3316]
[1724867081590,6.95585,2527.9,2527.8,2.3316]
[1724867081753,10.9117,2527.9,2527.8,2.3316]
[1724867083561,10.9117,2527.9,2527.6,3.75547071]
[1724867083562,7.91232,2527.7,2527.6,3.75547071]
[1724867084155,10.91232,2527.7,2527.6,3.75547071]
[1724867084558,3.0,2527.7,2527.6,3.75547071]
[1724867085148,6.95616,2527.7,2527.6,3.75547071]
[1724867085352,3.0,2527.7,2527.6,6.21877071]
[1724867085548,6.95606,2527.8,2527.7,2.4633]
[1724867085746,3.95616,2527.7,2527.6,3.75547071]
[1724867085988,14.86848,2527.7,2527.6,3.75547071]
[1724867086281,15.41848,2527.7,2527.6,3.75547071]
[1724867087395,10.91232,2527.7,2527.6,6.25407071]
[1724867087797,10.91232,2527.7,2527.6,6.3311045]
[1724867088987,15.88035483,2527.7,2527.6,3.67022587]
[1724867089331,18.35479314,2527.7,2527.6,1.55371182]
[1724867089493,17.97373483,2527.7,2527.6,1.55371182]
[1724867089694,17.97373483,2527.7,2527.6,1.47667803]
[1724867090094,15.88035483,2527.7,2527.6,1.47667803]
[1724867090303,15.41848,2527.7,2527.6,1.47667803]
[1724867090792,19.503651,2527.7,2527.6,1.47667803]
[1724867091112,18.309607,2527.7,2527.6,1.47667803]
[1724867092018,17.75678,2527.7,2527.6,1.47667803]
[1724867092186,15.41848,2527.7,2527.6,1.47667803]
[1724867092784,11.5520508,2527.7,2527.6,1.47667803]
[1724867093321,10.91232,2527.7,2527.6,1.47667803]
[1724867093524,3.95616,2527.7,2527.6,1.47667803]
[1724867093727,7.91232,2527.7,2527.6,1.47667803]
[1724867094844,10.91232,2527.7,2527.6,1.47667803]
[1724867095331,11.32686891,2527.7,2527.6,1.47667803]
[1724867096221,0.41454891,2527.7,2527.6,3.75317803]
[1724867096595,0.41454891,2527.7,2527.6,3.83040523]
[1724867097641,3.41454891,2527.7,2527.6,3.83040523]
[1724867097847,6.95586,2527.9,2527.7,2.3734]
[1724867098430,3.0,2527.9,2527.8,0.07693125]
[1724867098745,3.0,2527.9,2527.8,2.47653125]
[1724867099915,6.95585,2527.9,2527.8,2.47653125]
[1724867100321,3.0,2527.9,2527.8,2.47653125]
[1724867101335,3.95516,2528.4,2527.8,2.87185218]
[1724867101540,3.0,2528.3,2527.8,2.47653125]
[1724867101725,3.95585,2527.9,2527.8,2.47653125]
[1724867101923,6.95585,2527.9,2527.8,2.47653125]
[1724867103948,3.0,2527.9,2527.8,2.47653125]
[1724867104132,6.95555,2528.1,2527.8,2.47653125]
[1724867105153,3.0,2528.1,2527.8,2.47653125]
[1724867105353,6.95555,2528.1,2527.8,2.47653125]
[1724867105716,3.9557,2528.0,2527.8,2.47653125]
[1724867105911,3.0,2527.9,2527.8,2.47653125]
[1724867106852,6.95585,2527.9,2527.8,2.47653125]
[1724867107224,3.0,2527.9,2527.8,2.47653125]
[1724867107429,3.0,2528.1,2527.8,2.47653125]
[1724867107640,3.0,2528.1,2527.8,2.87185218]
[1724867108202,0.41445745,2528.5,2527.9,2.530916]
[1724867108415,0.41445745,2528.5,2528.0,2.53090282]
[1724867108557,0.41445745,2528.5,2528.0,4.11102246]
[1724867108898,3.9542,2529.0,2528.2,2.4518]
[1724867109210,0.46187483,2528.9,2528.3,2.57098047]
[1724867109362,3.95454,2528.8,2528.3,2.57098047]
[1724867109709,3.0,2528.7,2528.3,2.57098047]
[1724867109872,3.0,2528.7,2528.4,2.4951]
[1724867110206,3.0,2528.7,2528.5,0.07537693]
[1724867110411,10.90921,2528.7,2528.6,2.3588]
[1724867110597,10.90921,2528.7,2528.6,2.43407013]
[1724867111171,3.95519,2528.4,2528.2,2.315]
[1724867111378,3.0,2528.3,2528.2,2.315]
[1724867111807,6.95522,2528.3,2528.2,2.315]
[1724867113055,10.91044,2528.3,2527.6,8.88667803]
[1724867113363,3.95572,2528.0,2527.7,2.4461]
[1724867113648,3.0,2527.9,2527.7,2.4461]
[1724867114000,6.9559,2527.9,2527.7,2.4461]
[1724867114302,3.0,2527.9,2527.7,2.4461]
[1724867114529,3.0,2527.9,2527.7,2.8383778]
[1724867114736,6.95531,2528.3,2527.7,2.8383778]
[1724867114937,3.95594,2527.9,2527.7,2.4461]
[1724867115673,3.0,2528.3,2527.7,2.4461]
[1724867115674,3.95548,2528.2,2527.7,2.4461]
[1724867115854,3.95595,2527.9,2527.7,2.4461]
[1724867116002,3.956,2527.8,2527.7,2.4461]
[1724867116743,3.95586,2527.9,2527.7,2.4461]
[1724867116946,7.91185,2527.9,2527.7,2.4461]
[1724867117129,3.95586,2527.9,2527.7,2.4461]
[1724867117545,3.956,2527.8,2527.7,2.4461]
[1724867118252,7.912,2527.8,2527.7,2.4461]
[1724867118455,7.91232,2527.7,2527.6,1.47667803]
[1724867118611,14.86848,2527.7,2527.6,1.47667803]
[1724867121156,18.82464,2527.7,2527.6,1.47667803]
[1724867121526,7.91482,2526.9,2526.8,2.4426]
[1724867121926,7.91482,2526.9,2526.8,2.51768006]
[1724867122148,10.91482,2526.9,2526.8,2.4426]
[1724867126386,3.95791,2526.6,2526.2,2.4426]
[1724867126551,3.95764,2526.8,2526.2,2.4426]
[1724867126552,3.0,2526.5,2526.2,2.4426]
[1724867126750,3.95835,2526.4,2526.3,0.07067451]
[1724867126985,6.95835,2526.4,2526.3,0.07067451]
[1724867127369,10.9167,2526.4,2526.3,0.07067451]
[1724867130606,3.95856,2526.2,2526.0,2.4802]
[1724867130749,3.0,2526.4,2526.2,2.3905]
[1724867130948,3.0,2526.4,2526.3,2.45845537]
[1724867131271,3.95782,2526.7,2526.3,2.45845537]
[1724867131272,3.0,2526.6,2526.3,2.45845537]
[1724867131582,6.95789,2526.6,2526.3,2.45845537]
[1724867131796,3.0,2526.6,2526.3,2.45845537]
[1724867131945,3.0,2526.7,2526.5,2.2694]
[1724867132146,0.41458072,2527.3,2526.6,0.06763443]
[1724867132361,3.95679,2527.3,2526.7,2.2694]
[1724867132655,3.95679,2527.3,2526.9,2.2694]
[1724867133080,3.95679,2527.3,2527.0,0.06720664]
[1724867133653,3.0,2527.2,2527.0,0.06720664]
[1724867133854,6.95696,2527.2,2527.0,0.06720664]
[1724867134152,7.9142,2527.1,2527.0,0.06720664]
[1724867134351,3.9571,2527.1,2527.0,0.06720664]
[1724867134675,6.9571,2527.1,2526.6,2.2694]
[1724867134855,3.0,2527.0,2526.7,0.96794]
[1724867135257,6.95728,2527.0,2526.7,0.96794]
[1724867135995,6.95728,2527.0,2526.6,2.2694]
[1724867136173,3.95746,2526.9,2526.6,2.2694]
[1724867136378,3.0,2526.8,2526.6,2.2694]
[1724867136575,3.95773,2526.7,2526.6,2.2694]
[1724867138083,6.95773,2526.7,2526.6,2.2694]
[1724867138787,6.95773,2526.7,2526.6,2.3370634]
[1724867138973,10.91546,2526.7,2526.6,0.0676634]
[1724867139288,3.95801,2526.6,2526.3,2.2653]
[1724867139449,3.0,2526.5,2526.3,2.2653]
[1724867139799,3.9573,2527.0,2526.4,2.2653]
[1724867140102,3.0,2526.9,2526.4,2.2653]
[1724867140592,3.95726,2527.0,2526.4,2.2682]
[1724867140997,3.0,2527.1,2526.4,2.2682]
[1724867141149,3.26294629,2529.9,2526.6,2.2682]
[1724867141150,7.91335,2527.4,2526.6,2.2682]
[1724867141349,3.95663,2527.4,2526.6,2.2682]
[1724867141587,0.41457445,2527.7,2526.6,2.2682]
[1724867141588,3.95633,2527.6,2526.6,2.2682]
[1724867141892,3.95753,2526.9,2526.6,2.2682]
[1724867142050,7.91445,2527.1,2526.6,3.26618882]
[1724867142396,3.95732,2527.0,2526.6,3.26618882]
[1724867142698,3.9572,2527.1,2526.8,2.2682]
[1724867143221,6.95688,2527.3,2526.8,2.2682]
[1724867143887,3.95718,2527.1,2526.8,2.2682]
[1724867144097,3.95726,2527.0,2526.8,2.2682]
[1724867144390,3.95741,2526.9,2526.8,2.2682]
[1724867145443,3.95812,2526.5,2526.3,2.3353]
[1724867145675,3.9582,2526.4,2526.3,2.3353]
[1724867145905,3.95812,2526.5,2526.3,2.3353]
[1724867146394,3.0,2526.8,2526.3,2.3353]
[1724867146395,7.9164,2526.4,2526.3,2.3353]
[1724867146597,10.9164,2526.4,2526.3,2.3353]
[1724867149905,10.9164,2526.4,2526.0,12.18]
[1724867149906,3.95867,2526.1,2526.0,2.3256]
[1724867150193,3.95867,2526.1,2525.5,7.41]
[1724867150194,7.91856,2525.8,2525.7,2.3256]
[1724867150411,3.95976,2525.4,2525.3,2.3256]
[1724867151071,3.95939,2525.7,2525.3,2.3256]
[1724867151290,3.95963,2525.5,2525.3,2.3256]
[1724867151672,3.95963,2525.5,2525.4,0.06932898]
[1724867152450,7.91879,2525.7,2525.4,0.06932898]
[1724867152653,7.91879,2525.7,2525.3,2.3256]
[1724867152654,6.95945,2525.6,2525.3,2.3256]
[1724867152851,3.0,2525.6,2525.5,0.06943443]
[1724867153099,3.0,2525.6,2525.3,2.3256]
[1724867153341,3.0,2525.6,2525.5,0.06943443]
[1724867153646,3.95874,2526.1,2525.5,2.4398]
[1724867153800,3.95845,2526.3,2525.7,2.4398]
[1724867154135,3.95868,2526.1,2525.8,0.06911813]
[1724867154322,3.95845,2526.3,2525.8,0.06911813]
[1724867154520,3.95814,2526.5,2525.9,2.4628]
[1724867154724,3.95789,2526.6,2526.1,2.4252]
[1724867154936,4.37246161,2526.7,2526.1,2.4252]
[1724867155103,4.37245161,2526.7,2526.2,0.31101686]
[1724867155451,3.95782,2526.7,2526.3,2.4252]
[1724867155819,3.95791,2526.6,2526.3,2.49357538]
[1724867156357,3.95791,2526.6,2526.3,2.4252]
[1724867156555,3.95791,2526.6,2526.3,2.66772]
[1724867156850,3.95814,2526.5,2526.3,2.4252]
[1724867157062,7.91631,2526.5,2526.3,2.4252]
[1724867157266,3.95814,2526.5,2526.3,2.4252]
[1724867157646,3.95814,2526.5,2526.4,0.06826839]
[1724867158066,3.95814,2526.5,2526.3,2.4252]
[1724867158428,7.91626,2526.5,2526.4,0.06826839]
[1724867158638,7.91626,2526.5,2526.4,2.40966839]
[1724867158639,6.95812,2526.5,2526.4,2.40966839]
[1724867158855,3.0,2526.5,2526.4,2.3414]
[1724867159057,3.0,2526.6,2526.4,2.3414]
[1724867159636,3.0,2526.6,2526.5,0.06816141]
[1724867160459,4.41921483,2527.0,2526.6,2.3717]
[1724867160641,7.91469,2527.0,2526.6,2.4508478]
[1724867160848,3.95734,2527.0,2526.6,2.70274872]
[1724867161244,3.95734,2527.0,2526.7,0.06794748]
[1724867161875,3.0,2527.2,2526.7,0.06794748]
[1724867162081,3.95757,2526.8,2526.7,0.06794748]
[1724867163372,3.95752,2526.9,2526.7,0.06794748]
[1724867163934,3.0,2527.1,2526.8,2.4504]
[1724867164143,3.9571,2527.1,2526.8,2.51824053]
[1724867164451,3.95701,2527.2,2526.8,2.51824053]
[1724867164665,3.95701,2527.2,2526.8,2.77006458]
[1724867165303,7.91409,2527.2,2526.8,2.77006458]
[1724867165587,3.9574,2527.0,2526.8,2.51824053]
[1724867166089,3.9574,2527.0,2526.8,2.4504]
[1724867166291,3.95711,2527.1,2526.9,0.06757429]
[1724867166498,3.4145797,2527.4,2527.0,2.3477]
[1724867166645,14.8503396,2528.2,2527.0,2.3477]
[1724867166646,7.91315,2527.5,2527.1,0.07913271]